bitfinex/quotes_SOLUSD_20250130
["timestamp","ask_amount","ask_price","bid_price","bid_amount"]
[1738262785575,0.12549,240.81,240.76,0.063]
[1738262785746,0.90422754,240.81,240.76,0.063]
[1738262790365,0.12549,240.79,240.76,0.063]
[1738262790546,0.90430721,240.79,240.76,0.063]
[1738262790744,0.12549,240.79,240.76,0.063]
[1738262791171,0.9042012,240.81,240.76,0.063]
[1738262791673,0.77871481,240.83,240.76,0.57623531]
[1738262791863,0.77871481,240.83,240.76,0.063]
[1738262792875,0.12549,240.82,240.76,0.063]
[1738262794772,18.9382674,240.86,240.77,12.92413987]
[1738262794983,0.12549,240.85,240.79,12.41091392]
[1738262795164,0.12549,240.85,240.8,0.51298172]
[1738262795563,0.12549,240.85,240.79,12.41091392]
[1738262795865,0.12549,240.85,240.79,12.92397471]
[1738262796958,0.03,240.83,240.79,12.92397471]
[1738262799571,0.03,240.83,240.81,12.41091392]
[1738262799873,0.03,240.83,240.82,0.51290111]
[1738262800071,0.03,240.83,240.82,82.81290111]
[1738262801172,0.03,240.83,240.79,137.0]
[1738262801173,0.03,240.83,240.79,231.71091392]
[1738262801375,0.03,240.83,240.79,219.3]
[1738262801595,0.03,240.83,240.8,0.51304884]
[1738262802100,0.03,240.83,240.8,0.5130428]
[1738262804094,0.03,240.83,240.81,12.41091392]
[1738262804297,0.03,240.83,240.82,0.51260808]
[1738262805193,0.03,240.83,240.82,219.81260808]
[1738262805402,0.03,240.83,240.82,219.3]
[1738262805895,0.03,240.83,240.82,232.71091392]
[1738262806073,0.03,240.88,240.85,22.0]
[1738262806397,0.03,240.88,240.87,12.41091392]
[1738262807099,0.03,240.88,240.87,14.41091392]
[1738262807298,0.03,240.88,240.87,12.41091392]
[1738262809276,0.03,240.88,240.86,0.51215482]
[1738262809695,0.03,240.88,240.86,0.5126493]
[1738262809993,0.03,240.88,240.86,0.51264935]
[1738262810575,0.03,240.88,240.85,82.81265317]
[1738262812100,0.03,240.88,240.85,95.22356709]
[1738262812301,0.03,240.88,240.85,94.71091392]
[1738262813702,0.03,240.88,240.87,12.41091392]
[1738262814002,0.03,240.88,240.87,12.92336457]
[1738262815804,0.03,240.88,240.87,232.22336457]
[1738262816003,0.03,240.88,240.87,231.71091392]
[1738262818109,0.03,240.88,240.87,232.71091392]
[1738262820406,0.03,241.03,240.91,1.0]
[1738262820607,0.03,241.03,240.98,12.41091392]
[1738262820798,0.03,241.03,240.99,0.51170478]
[1738262823113,0.03,241.03,240.98,94.71091392]
[1738262823696,0.03,241.03,240.98,82.3]
[1738262823905,12.56640392,241.03,240.98,82.3]
[1738262824312,0.15549,241.03,240.98,82.3]
[1738262824500,0.15549,241.03,240.99,0.51191017]
[1738262827512,0.15549,241.03,240.98,82.3]
[1738262827691,12.44091392,241.03,240.98,82.3]
[1738262832528,13.53733853,240.99,240.92,82.3]
[1738262832721,0.12549,240.94,240.92,82.3]
[1738262835827,12.41091392,240.99,240.93,0.51226311]
[1738262836126,12.41091392,240.99,240.93,82.81226311]
[1738262836351,12.41091392,240.97,240.93,82.3]
[1738262836640,13.53733853,240.94,240.88,82.363]
[1738262836815,0.12549,240.9,240.88,82.363]
[1738262838624,17.68803853,240.92,240.88,82.363]
[1738262838830,0.12549,240.9,240.88,82.363]
[1738262839035,12.53640392,240.89,240.88,82.363]
[1738262839229,12.53640392,240.89,240.88,0.063]
[1738262839929,0.12549,240.89,240.88,0.063]
[1738262841806,12.41091392,240.93,240.88,0.063]
[1738262842419,0.12549,240.92,240.88,0.063]
[1738262842640,0.90384184,240.92,240.88,0.063]
[1738262844139,0.12549,240.92,240.88,0.063]
[1738262844453,12.53640392,240.89,240.88,0.063]
[1738262845449,0.12549,240.89,240.88,0.063]
[1738262846951,16.56141392,240.93,240.88,0.063]
[1738262847462,0.12549,240.92,240.88,0.063]
[1738262850864,0.77831938,241.0,240.91,7.94540312]
[1738262851067,0.03,241.03,240.96,7.94540312]
[1738262851240,0.03,241.03,240.98,7.94540312]
[1738262851431,0.03,241.03,240.99,0.51187841]
[1738262852331,0.03,241.03,241.0,7.94540312]
[1738262852671,0.03,241.03,241.01,0.51165873]
[1738262853254,0.03,241.03,241.02,12.40127088]
[1738262854065,0.03,241.03,241.02,231.70127088]
[1738262859359,0.03,241.03,241.02,245.23860941]
[1738262862280,0.03,241.05,241.04,1.12549]
[1738262862469,0.03,241.05,241.04,27.44932015]
[1738262863075,0.03,241.05,241.04,246.74932015]
[1738262863287,0.03,241.05,241.04,246.23860941]
[1738262864878,0.03,241.05,241.04,232.70127088]
[1738262867246,0.03,241.05,241.04,233.70127088]
[1738262867685,0.03,241.05,241.04,247.11311941]
[1738262871292,0.03,241.05,241.04,247.23860941]
[1738262871467,0.03,241.08,241.07,21.0]
[1738262871664,0.03,241.08,241.07,279.27600084]
[1738262871895,0.03,241.08,241.07,278.76537029]
[1738262873476,0.03,241.08,241.07,252.70127088]
[1738262873676,0.03,241.08,241.07,251.70127088]
[1738262877694,0.03,241.08,241.07,231.70127088]
[1738262877891,0.03,241.08,241.07,82.3]
[1738262878082,0.15549,241.08,241.07,82.3]
[1738262879816,4.30349,241.08,241.07,82.3]
[1738262880392,4.30349,241.08,241.03,0.063]
[1738262880597,0.12549,241.06,241.03,0.063]
[1738262881191,0.15549,241.08,241.03,0.063]
[1738262881516,0.12549,241.06,241.03,0.063]
[1738262883318,0.03,241.08,241.03,0.063]
[1738262883621,4.178,241.08,241.03,0.063]
[1738262885326,0.03,241.08,241.03,0.063]
[1738262885503,0.03,241.08,241.04,12.40127088]
[1738262885710,0.03,241.08,241.05,0.51128195]
[1738262886400,0.03,241.08,241.06,12.40127088]
[1738262886603,0.03,241.08,241.07,0.51125442]
[1738262890015,0.03,241.08,241.06,82.3]
[1738262890228,12.52676088,241.07,241.06,82.3]
[1738262890615,4.1485,241.05,241.03,0.063]
[1738262890825,0.12549,241.06,241.03,0.063]
[1738262891894,0.03,241.07,241.03,0.063]
[1738262892125,0.03,241.07,241.03,0.57448625]
[1738262892323,0.03,241.07,241.04,12.40127088]
[1738262892528,0.03,241.07,241.06,12.40127088]
[1738262893440,0.03,241.07,241.06,149.40127088]
[1738262894808,0.03,241.07,241.03,220.363]
[1738262895010,0.03,241.07,241.06,12.40127088]
[1738262895324,0.03,241.07,241.06,232.2121455]
[1738262895525,0.03,241.07,241.06,231.70127088]
[1738262903332,0.03,241.07,241.06,245.11311941]
[1738262904116,0.03,241.07,241.06,257.63988029]
[1738262904629,0.03,241.07,241.06,257.70288029]
[1738262905224,0.03,241.07,241.06,245.30160941]
[1738262905722,0.03,241.07,241.06,257.70288029]
[1738262906042,0.03,241.07,241.06,257.82837029]
[1738262907842,0.03,241.08,241.07,15.66282853]
[1738262908026,0.03,241.08,241.07,16.17337272]
[1738262908335,0.03,241.08,241.07,235.47337272]
[1738262908543,0.03,241.13,241.11,1.0]
[1738262908737,0.03,241.13,241.12,12.91168941]
[1738262909439,0.03,241.13,241.12,26.32353794]
[1738262909652,0.03,241.13,241.12,26.44902794]
[1738262909833,0.03,241.13,241.12,245.74902794]
[1738262910018,0.03,241.13,241.12,245.23860941]
[1738262910748,0.03,241.13,241.12,240.76209805]
[1738262911224,0.03,241.13,241.12,242.52106908]
[1738262911643,0.03,241.15,241.14,30.05024952]
[1738262911831,0.03,241.15,241.14,30.56034529]
[1738262912031,6.0795,241.28,241.17,14.41184853]
[1738262912351,6.0795,241.28,241.17,242.14656987]
[1738262912527,6.0795,241.28,241.17,241.63660805]
[1738262915851,0.03,241.28,241.22,20.0]
[1738262916029,0.03,241.28,241.27,7.92475952]
[1738262916230,0.03,241.28,241.27,227.22475952]
[1738262916755,0.03,241.28,241.27,219.3]
[1738262919829,7.95475952,241.28,241.25,137.0]
[1738262920153,8.05024952,241.26,241.25,137.0]
[1738262921082,0.03,241.28,241.25,137.0]
[1738262921242,0.03,241.28,241.26,0.51001521]
[1738262921968,0.03,241.28,241.27,7.92475952]
[1738262922652,0.03,241.28,241.26,0.51001521]
[1738262923078,0.03,241.28,241.25,137.0]
[1738262923745,0.15549,241.28,241.25,137.0]
[1738262924779,0.03,241.28,241.25,137.0]
[1738262925347,0.03,241.28,241.26,0.5100834]
[1738262925846,0.03,241.28,241.26,82.8100834]
[1738262927782,0.03,241.28,241.27,12.37895519]
[1738262928079,0.03,241.28,241.27,231.67895519]
[1738262929389,0.03,241.28,241.27,245.09080372]
[1738262929554,0.03,241.29,241.28,14.41184853]
[1738262929754,0.03,241.29,241.28,14.9211278]
[1738262930150,0.03,241.29,241.28,234.4721078]
[1738262930458,1.5166,241.41,241.32,13.41184853]
[1738262930780,1.5166,241.41,241.39,12.37895519]
[1738262930962,1.5166,241.41,241.4,0.50910975]
[1738262931460,1.5166,241.41,241.39,149.37895519]
[1738262931978,1.5166,241.41,241.39,137.0]
[1738262932876,1.5166,241.41,241.31,12.37895519]
[1738262932877,12.50444519,241.4,241.31,12.37895519]
[1738262933079,0.12549,241.37,241.32,0.50961189]
[1738262933802,4.26849,241.37,241.32,0.50961189]
[1738262934581,4.26849,241.37,241.31,149.37895519]
[1738262934582,4.26849,241.37,241.31,137.0]
[1738262934786,4.26849,241.37,241.32,0.50967344]
[1738262935382,4.26849,241.37,241.31,137.0]
[1738262935591,4.26849,241.37,241.32,0.50969222]
[1738262937081,0.12549,241.38,241.32,0.50969222]
[1738262937786,4.26809,241.39,241.32,219.80969222]
[1738262938076,4.26809,241.39,241.32,219.3]
[1738262938267,0.12549,241.39,241.33,0.50945346]
[1738262938664,0.12549,241.39,241.33,12.88840865]
[1738262938867,1.5166,241.41,241.35,12.37895519]
[1738262939175,1.5166,241.41,241.36,0.50931072]
[1738262939357,1.5166,241.41,241.36,82.80931072]
[1738262939860,1.5201,241.46,241.39,12.37895519]
[1738262940070,1.5201,241.46,241.42,12.37895519]
[1738262940391,1.5201,241.46,241.43,0.50891359]
[1738262940559,16.51975519,241.5,241.43,0.50891359]
[1738262940760,4.1408,241.5,241.44,12.37895519]
[1738262941362,16.51945519,241.52,241.44,12.88782045]
[1738262941761,0.03,241.53,241.46,12.37895519]
[1738262941962,0.03,241.53,241.48,12.37895519]
[1738262942186,0.03,241.53,241.49,0.50854788]
[1738262943282,0.03,241.53,241.5,12.37895519]
[1738262943460,0.03,241.53,241.51,0.5083727]
[1738262944464,0.03,241.53,241.49,0.50836979]
[1738262945292,0.15549,241.53,241.49,0.50836979]
[1738262945471,0.15549,241.53,241.48,137.0]
[1738262945873,4.29579,241.53,241.48,137.0]
[1738262946072,0.12549,241.49,241.48,137.0]
[1738262946273,0.12549,241.49,241.44,82.3]
[1738262946588,12.37895519,241.46,241.44,82.3]
[1738262946775,0.12549,241.45,241.44,82.3]
[1738262946965,7.9166,241.44,241.35,12.37895519]
[1738262947165,12.37895519,241.41,241.35,137.50938292]
[1738262947395,12.37895519,241.41,241.35,137.0]
[1738262947610,12.37895519,241.41,241.36,0.5093264]
[1738262947768,0.12549,241.4,241.36,0.5093264]
[1738262948278,16.52105519,241.43,241.36,0.5093264]
[1738262948699,0.12549,241.42,241.36,0.5093264]
[1738262949191,0.12549,241.38,241.33,219.3]
[1738262949379,12.37895519,241.36,241.28,12.37895519]
[1738262949566,12.37895519,241.36,241.29,0.5096445]
[1738262949771,12.50444519,241.38,241.3,12.37895519]
[1738262949974,0.12549,241.39,241.32,12.37895519]
[1738262950199,0.12549,241.39,241.33,0.50946484]
[1738262950506,0.12549,241.39,241.33,137.50946484]
[1738262950714,0.12549,241.39,241.33,137.0]
[1738262951611,0.12549,241.37,241.33,137.0]
[1738262951797,0.90234476,241.37,241.33,137.0]
[1738262951988,12.37895519,241.35,241.33,137.0]
[1738262952385,0.12549,241.34,241.28,149.37895519]
[1738262952602,0.90249127,241.34,241.28,137.0]
[1738262952985,0.12549,241.34,241.28,137.0]
[1738262953384,0.12549,241.34,241.29,0.5098508]
[1738262954283,0.12549,241.32,241.28,137.0]
[1738262955716,7.8186,241.31,241.26,82.3]
[1738262955934,20.19755519,241.31,241.26,82.3]
[1738262956212,0.12549,241.28,241.26,82.3]
[1738262957917,20.19755519,241.31,241.26,82.3]
[1738262958736,0.12549,241.3,241.26,82.3]
[1738262959931,20.19755519,241.31,241.18,82.363]
[1738262959932,12.50444519,241.27,241.18,82.363]
[1738262960102,0.12549,241.27,241.2,12.37895519]
[1738262960431,0.12549,241.27,241.21,0.51020667]
[1738262960733,12.37895519,241.29,241.21,0.51020667]
[1738262961541,20.19755519,241.31,241.22,12.37895519]
[1738262961708,0.12549,241.3,241.23,0.51003917]
[1738262961908,0.12549,241.3,241.23,137.51003917]
[1738262962127,0.12549,241.28,241.23,137.0]
[1738262962324,0.90268394,241.28,241.23,137.0]
[1738262962504,0.12549,241.28,241.23,137.0]
[1738262964014,0.12549,241.24,241.18,219.363]
[1738262964219,12.37895519,241.23,241.18,219.363]
[1738262964436,12.37895519,241.23,241.19,0.51056958]
[1738262964729,12.37895519,241.23,241.18,219.363]
[1738262965134,12.37895519,241.23,241.19,0.5105589]
[1738262965918,12.37895519,241.23,241.18,219.363]
[1738262966814,0.12549,241.22,241.18,219.363]
[1738262967335,12.37895519,241.21,241.18,82.363]
[1738262967716,12.50444519,241.19,241.18,0.063]
[1738262968247,13.28198914,241.19,241.18,0.063]
[1738262968748,17.42808914,241.19,241.18,0.063]
[1738262968903,0.12549,241.19,241.18,0.063]
[1738262970335,16.65054519,241.19,241.18,0.063]
[1738262971058,12.50444519,241.19,241.18,0.063]
[1738262973647,0.12549,241.19,241.18,0.063]
[1738262973848,12.37895519,241.23,241.18,0.063]
[1738262975268,14.71303181,241.25,241.18,0.063]
[1738262975433,0.12549,241.24,241.18,0.57350414]
[1738262975629,12.37895519,241.23,241.18,0.57350414]
[1738262975845,0.12549,241.22,241.18,0.063]
[1738262980880,0.12549,241.22,241.18,0.57355981]
[1738262988693,12.37895519,241.23,241.18,0.57355981]
[1738262988993,16.52405519,241.25,241.18,0.57355981]
[1738262989589,16.52365519,241.27,241.2,12.37895519]
[1738262989897,16.52365519,241.27,241.21,0.51027788]
[1738262990277,12.37895519,241.27,241.21,0.51027788]
[1738262990594,12.37895519,241.27,241.21,137.51027788]
[1738262990782,0.12549,241.26,241.22,0.51021288]
[1738262991081,0.12549,241.26,241.21,137.0]
[1738262992793,4.27039,241.26,241.21,137.0]
[1738262993168,0.12549,241.26,241.22,0.5103292]
[1738262993669,12.37895519,241.25,241.21,137.0]
[1738262993976,0.12549,241.21,241.18,0.063]
[1738262994179,12.50444519,241.19,241.18,0.063]
[1738262995188,16.65054519,241.19,241.18,0.063]
[1738262998103,20.12549,241.16,241.15,0.063]
[1738262998275,46.69397458,241.16,241.15,0.063]
[1738262998486,50.84057458,241.16,241.15,0.063]
[1738262999606,37.42872605,241.16,241.15,0.063]
[1738263000199,13.28212605,241.16,241.15,0.063]
[1738263000407,12.50444519,241.16,241.15,0.063]
[1738263001212,0.12549,241.16,241.15,0.063]
[1738263001506,12.37895519,241.18,241.15,0.063]
[1738263001809,13.15640581,241.2,241.15,0.063]
[1738263002104,12.37895519,241.22,241.15,137.57391166]
[1738263002280,12.37895519,241.26,241.18,12.37895519]
[1738263002478,13.1562664,241.28,241.2,12.37895519]
[1738263002802,13.94305519,241.3,241.22,12.37895519]
[1738263003104,0.03,241.3,241.24,12.37895519]
[1738263003318,0.03,241.3,241.25,0.51000969]
[1738263003700,0.03,241.3,241.25,137.51000969]
[1738263004008,0.03,241.3,241.26,12.37895519]
[1738263004184,0.03,241.3,241.27,0.50990089]
[1738263005999,0.03,241.3,241.26,137.0]
[1738263006509,0.12549,241.29,241.26,137.0]
[1738263007198,0.12549,241.29,241.22,14.00275519]
[1738263007507,0.12549,241.25,241.18,137.063]
[1738263007709,12.37895519,241.23,241.18,137.063]
[1738263007884,0.12549,241.2,241.18,137.063]
[1738263008190,12.37895519,241.23,241.18,0.063]
[1738263008390,0.12549,241.22,241.18,0.063]
[1738263008914,16.52385519,241.27,241.18,12.44195519]
[1738263009209,0.12549,241.26,241.19,0.51039092]
[1738263009786,12.37895519,241.25,241.19,0.51039092]
[1738263012622,0.12549,241.26,241.19,0.51039092]
[1738263014918,12.37895519,241.29,241.2,12.37895519]
[1738263015123,16.52335519,241.29,241.21,0.51022506]
[1738263015304,12.37895519,241.29,241.22,12.37895519]
[1738263015506,0.03,241.3,241.23,0.51015351]
[1738263015826,0.03,241.3,241.23,219.81015351]
[1738263016125,0.15549,241.3,241.23,219.3]
[1738263016919,12.37895519,241.29,241.23,219.3]
[1738263017119,12.37895519,241.29,241.24,0.51017816]
[1738263017717,0.12549,241.28,241.23,219.3]
[1738263018020,0.12549,241.26,241.2,82.3]
[1738263018604,12.37895519,241.25,241.2,82.3]
[1738263019429,12.37895519,241.25,241.21,0.51044962]
[1738263020127,16.52395519,241.25,241.2,82.3]
[1738263020812,12.37895519,241.21,241.18,137.063]
[1738263021029,12.37895519,241.19,241.18,137.063]
[1738263021331,12.37895519,241.19,241.18,0.063]
[1738263023932,0.12549,241.2,241.18,0.063]
[1738263024135,12.37895519,241.21,241.18,0.063]
[1738263025035,0.12549,241.22,241.18,0.063]
[1738263025849,0.12549,241.2,241.18,0.063]
[1738263026322,12.50444519,241.19,241.18,0.063]
[1738263027327,13.50444519,241.19,241.18,0.063]
[1738263027858,31.06239372,241.19,241.18,0.063]
[1738263028538,31.06239372,241.19,241.18,0.0001]
[1738263028737,40.11199372,241.19,241.18,0.0001]
[1738263028944,39.11199372,241.19,241.18,0.0001]
[1738263032958,24.70014519,241.19,241.18,0.0001]
[1738263033158,4.27159,241.19,241.18,0.0001]
[1738263033362,0.12549,241.19,241.18,0.0001]
[1738263034042,17.30165452,241.24,241.18,0.0001]
[1738263034238,13.15645452,241.24,241.18,0.0001]
[1738263034760,0.12549,241.23,241.18,0.0001]
[1738263035764,4.27089,241.23,241.18,0.0001]
[1738263036346,0.12549,241.21,241.18,0.0001]
[1738263036549,0.12549,241.19,241.18,0.0001]
[1738263037852,0.12549,241.21,241.18,0.0001]
[1738263038162,0.12549,241.19,241.18,0.0001]
[1738263038947,0.93296303,241.19,241.18,0.0001]
[1738263039266,19.49091156,241.19,241.18,0.0001]
[1738263040782,19.49091156,241.19,241.15,0.063]
[1738263040783,20.12549,241.16,241.15,0.0001]
[1738263040962,0.12549,241.09,241.06,0.063]
[1738263041169,32.50444519,241.07,241.06,0.063]
[1738263041853,20.12549,241.07,241.06,0.063]
[1738263042179,0.12549,241.07,241.06,0.063]
[1738263042348,14.53733853,241.07,241.06,0.063]
[1738263042547,13.53733853,241.07,241.06,0.063]
[1738263044755,0.12549,241.07,241.06,0.063]
[1738263046081,13.53733853,241.07,241.06,0.063]
[1738263047776,6.27379,241.06,241.03,0.063]
[1738263047984,7.05196883,241.06,241.03,0.063]
[1738263048205,18.43092402,241.06,241.03,0.063]
[1738263048378,17.43092402,241.06,241.03,0.063]
[1738263048883,30.84277255,241.06,241.03,0.063]
[1738263051193,31.84277255,241.06,241.03,0.063]
[1738263051365,31.87277255,241.06,241.03,0.063]
[1738263051559,30.87277255,241.06,241.03,0.063]
[1738263052385,17.46092402,241.06,241.03,0.063]
[1738263059296,30.87277255,241.06,241.03,0.063]
[1738263059593,31.87277255,241.06,241.03,0.063]
[1738263060495,30.87277255,241.06,241.03,0.063]
[1738263060799,17.46092402,241.06,241.03,0.063]
[1738263062385,18.46092402,241.06,241.03,0.063]
[1738263064486,32.87277255,241.06,241.03,0.063]
[1738263064682,0.12549,241.03,240.98,0.063]
[1738263064883,12.50444519,240.99,240.98,0.063]
[1738263065078,25.91629372,240.99,240.98,0.063]
[1738263065299,26.69466614,240.99,240.98,0.063]
[1738263066377,13.28281761,240.99,240.98,0.063]
[1738263066594,16.65394519,240.99,240.98,0.063]
[1738263066974,12.50444519,240.99,240.98,0.063]
[1738263067177,13.28261459,240.99,240.98,0.063]
[1738263067403,12.50444519,240.99,240.98,0.063]
[1738263067599,12.37895519,241.01,240.98,0.063]
[1738263067808,12.37895519,241.03,240.98,0.063]
[1738263068105,13.15696382,241.03,240.98,0.063]
[1738263068607,0.12549,241.02,240.98,0.063]
[1738263069192,12.37895519,241.05,240.98,0.063]
[1738263069911,0.90342756,241.04,240.98,0.063]
[1738263070601,0.12549,241.04,240.98,0.063]
[1738263072815,4.27419,241.04,240.98,0.063]
[1738263073716,0.12549,241.04,240.98,0.063]
[1738263074212,0.12549,241.04,240.98,8.00191078]
[1738263074426,0.12549,241.04,240.98,82.363]
[1738263074716,7.93891078,241.01,240.98,82.363]
[1738263074891,0.12549,241.0,240.98,82.363]
[1738263075807,20.12549,240.99,240.98,0.063]
[1738263076007,8.84247476,240.99,240.98,0.063]
[1738263077302,22.25432329,240.99,240.98,0.063]
[1738263078621,14.53733853,240.94,240.93,0.0001]
[1738263078798,27.74018279,240.94,240.93,0.0001]
[1738263081125,31.89058279,240.94,240.93,0.0001]
[1738263081426,30.89058279,240.94,240.93,0.0001]
[1738263081620,31.89058279,240.94,240.93,0.0001]
[1738263082906,21.12549,240.91,240.9,0.063]
[1738263083113,38.47935166,240.91,240.9,0.063]
[1738263083316,38.47935166,240.91,240.88,0.063]
[1738263083317,14.53733853,240.89,240.88,0.063]
[1738263083631,27.74037017,240.89,240.88,0.063]
[1738263085234,0.12549,240.84,240.83,0.063]
[1738263085399,39.16480601,240.84,240.83,0.063]
[1738263086421,43.31690601,240.84,240.83,0.063]
[1738263087551,44.31690601,240.84,240.83,0.063]
[1738263087955,43.31690601,240.84,240.83,0.063]
[1738263088626,44.31690601,240.84,240.83,0.063]
[1738263088826,43.31690601,240.84,240.83,0.063]
[1738263089054,44.31690601,240.84,240.83,0.063]
[1738263089252,43.31690601,240.84,240.83,0.063]
[1738263090559,17.48074039,240.84,240.83,0.063]
[1738263098857,11.3552522,240.84,240.83,0.063]
[1738263100558,7.2031522,240.84,240.83,0.063]
[1738263100767,8.73179352,240.84,240.83,0.063]
[1738263100936,13.00938352,240.84,240.83,0.063]
[1738263104065,59.23307293,240.84,240.83,0.0001]
[1738263107970,33.53733853,240.81,240.8,0.0001]
[1738263108156,42.26933703,240.81,240.8,0.0001]
[1738263109064,33.53733853,240.77,240.76,0.063]
[1738263109265,42.26938593,240.77,240.76,0.063]
[1738263109781,43.26938593,240.77,240.76,0.0001]
[1738263110452,73.26938593,240.77,240.76,0.0001]
[1738263111291,77.42268593,240.77,240.76,0.0001]
[1738263113357,47.42268593,240.77,240.76,0.0001]
[1738263113553,8.8575374,240.77,240.76,0.0001]
[1738263113770,12.10626022,240.77,240.76,0.0001]
[1738263114281,8.07845022,240.77,240.76,0.0001]
[1738263114475,8.85738821,240.77,240.76,0.0001]
[1738263114674,13.33901475,240.77,240.76,0.0001]
[1738263117858,0.12549,240.77,240.76,0.0001]
[1738263118776,13.21337107,240.82,240.76,0.0001]
[1738263119882,17.36577107,240.82,240.76,0.0001]
[1738263120063,0.12549,240.81,240.76,0.0001]
[1738263120368,0.12549,240.79,240.76,0.0001]
[1738263120774,0.12549,240.77,240.76,0.0001]
[1738263123386,4.93198219,240.78,240.76,0.0001]
[1738263123387,0.77878219,240.78,240.76,0.0001]
[1738263123590,0.77886699,240.82,240.76,12.43468676]
[1738263123775,0.80886699,240.82,240.76,12.948121]
[1738263124094,0.12549,240.81,240.76,12.948121]
[1738263124280,0.12549,240.81,240.76,95.248121]
[1738263124588,0.12549,240.81,240.78,12.43458676]
[1738263124794,0.15549,240.82,240.78,12.43458676]
[1738263126103,0.03,240.82,240.78,12.43458676]
[1738263126270,0.03,240.82,240.8,12.43458676]
[1738263127016,0.15549,240.82,240.78,12.43458676]
[1738263127174,5.0865756,240.82,240.76,219.3001]
[1738263127877,17.52116236,240.82,240.76,219.3001]
[1738263130789,17.52116236,240.82,240.76,82.3001]
[1738263134210,0.12549,240.77,240.76,0.0001]
[1738263134378,0.90437333,240.77,240.76,0.0001]
[1738263135099,5.05767333,240.77,240.76,0.0001]
[1738263136706,26.42957397,240.77,240.76,0.0001]
[1738263138685,30.90531324,240.77,240.76,0.0001]
[1738263143203,20.12549,240.74,240.73,0.063]
[1738263143515,33.34045894,240.74,240.73,0.063]
[1738263143879,46.75230747,240.74,240.73,0.063]
[1738263144111,50.90610747,240.74,240.73,0.063]
[1738263144303,20.0,240.7,240.68,0.063]
[1738263144610,13.34050354,240.69,240.68,0.063]
[1738263145191,26.75235207,240.69,240.68,0.063]
[1738263146215,30.90705207,240.69,240.68,0.063]
[1738263150328,31.90705207,240.69,240.68,0.0001]
[1738263151512,30.90705207,240.69,240.68,0.0001]
[1738263153333,17.49520354,240.69,240.68,0.0001]
[1738263154435,30.90705207,240.69,240.68,0.0001]
[1738263158729,26.43519073,240.69,240.68,0.0001]
[1738263159099,13.0533422,240.69,240.68,0.0001]
[1738263163649,20.93471216,240.69,240.68,0.0001]
[1738263163837,0.93471216,240.69,240.68,0.0001]
[1738263164213,0.03,240.69,240.68,0.0001]
[1738263165322,4.96383363,240.69,240.68,0.0001]
[1738263165758,12.92776367,240.69,240.68,0.0001]
[1738263165924,13.05325367,240.69,240.68,0.0001]
[1738263167846,0.93462363,240.69,240.68,0.0001]
[1738263168845,0.15549,240.69,240.68,0.0001]
[1738263170227,0.03,240.69,240.68,0.0001]
[1738263174242,0.03,240.69,240.68,0.51396528]
[1738263175349,0.03,240.69,240.68,82.81396528]
[1738263175955,0.03,240.69,240.68,0.51396528]
[1738263176274,0.03,240.69,240.68,0.0001]
[1738263178566,0.03,240.69,240.68,82.8139793]
[1738263180752,0.03,240.69,240.68,219.8139793]
[1738263180955,0.03,240.69,240.68,240.42944853]
[1738263181462,0.03,240.77,240.74,13.41184853]
[1738263181664,0.03,240.77,240.76,9.49863004]
[1738263182959,0.03,240.77,240.76,22.91047857]
[1738263183160,0.03,240.77,240.76,29.53077857]
[1738263184666,0.03,240.77,240.76,33.98672685]
[1738263185281,0.03,240.77,240.76,253.28672685]
[1738263189565,0.03,240.77,240.76,254.53770685]